fUSD/lending_fUSD_20260205
["ID","MTS","AMOUNT","RATE_DAILY","PERIOD"]
[404588831,1770317437445,-502.5925885,0.00014359,2]
[404588832,1770317437454,-500.0,0.00014359,2]
[404588833,1770317437464,-500.0,0.00014359,2]
[404588834,1770317437474,-500.0,0.00014359,2]
[404588835,1770317437484,-500.0,0.00014359,2]
[404588836,1770317437493,-500.0,0.00014359,2]
[404588837,1770317437503,-500.0,0.00014359,2]
[404588838,1770317437513,-500.0,0.00014359,2]
[404588839,1770317437523,-233.26,0.00014359,2]
[404588840,1770317437534,-500.0,0.00014359,2]
[404588841,1770317437544,-150.61782351,0.00014359,2]
[404588842,1770317437554,-500.0,0.00014359,2]
[404588843,1770317437564,-378.56522147,0.00014359,2]
[404588844,1770317437581,-200.0,0.00014436,2]
[404588845,1770317437591,-500.0,0.00014436,2]
[404588846,1770317437605,-500.0,0.00014436,2]
[404588847,1770317437618,-500.0,0.00014436,2]
[404588848,1770317437629,-500.0,0.00014436,2]
[404588849,1770317437639,-500.0,0.00014436,2]
[404588851,1770317437649,-500.0,0.00014436,2]
[404588853,1770317437663,-151.0,0.00014436,2]
[404588855,1770317437674,-500.0,0.00014436,2]
[404588857,1770317437684,-151.0,0.00014436,2]
[404588859,1770317437695,-151.0,0.00014436,2]
[404588861,1770317437705,-500.0,0.00014436,2]
[404588863,1770317437715,-151.0,0.00014436,2]
[404588865,1770317437726,-500.0,0.00014436,2]
[404588867,1770317437735,-151.0,0.00014436,2]
[404588869,1770317437745,-500.0,0.00014436,2]
[404588871,1770317437755,-151.0,0.00014436,2]
[404588873,1770317437766,-151.0,0.00014436,2]
[404588875,1770317437776,-500.0,0.00014436,2]
[404588877,1770317437787,-151.0,0.00014436,2]
[404588879,1770317437797,-151.0,0.00014436,2]
[404588881,1770317437807,-151.0,0.00014436,2]
[404588883,1770317437816,-500.0,0.00014436,2]
[404588885,1770317437833,-151.0,0.00014436,2]
[404588887,1770317437843,-500.0,0.00014436,2]
[404588890,1770317437857,-500.0,0.00014436,2]
[404588892,1770317437867,-500.0,0.00014436,2]
[404588894,1770317437878,-500.0,0.00014436,2]
[404588895,1770317437888,-500.0,0.00014436,2]
[404588896,1770317437898,-500.0,0.00014436,2]
[404588897,1770317437908,-500.0,0.00014436,2]
[404588898,1770317437918,-285.36336146,0.00014436,2]
[404588974,1770317438731,-214.63663854,0.00014436,2]
[404588976,1770317438742,-500.0,0.00014436,2]
[404588978,1770317438754,-500.0,0.00014436,2]
[404588980,1770317438764,-500.0,0.00014436,2]
[404588983,1770317438775,-151.0,0.00014436,2]
[404588985,1770317438786,-151.0,0.00014436,2]
[404588987,1770317438797,-151.0,0.00014436,2]
[404588989,1770317438808,-151.0,0.00014436,2]
[404588991,1770317438819,-151.0,0.00014436,2]
[404588993,1770317438833,-151.0,0.00014436,2]
[404588995,1770317438845,-151.0,0.00014436,2]
[404588997,1770317438856,-151.0,0.00014436,2]
[404588999,1770317438868,-264.66195742,0.00014436,2]
[404589001,1770317438879,-102.15960977,0.00014436,2]
[404589004,1770317438892,-97.84039023,0.00014436,2]
[404589006,1770317438902,-500.0,0.00014436,2]
[404589008,1770317438912,-451.36197851,0.0001446,2]
[404589010,1770317438922,-254.56,0.00014513,2]
[404589012,1770317438932,-415.56,0.00014519,2]
[404589014,1770317438942,-500.0,0.000146,2]
[404589016,1770317438952,-500.0,0.000146,2]
[404589018,1770317438962,-374.42763103,0.00014793,2]
[404589021,1770317438979,-41.13236897,0.00014793,2]
[404589023,1770317438989,-155.23496373,0.000149,2]
[404589025,1770317439002,-155.23496371,0.000149,2]
[404589027,1770317439013,-72.45843163,0.000149,2]
[404589030,1770317439035,-82.77653208,0.000149,2]
[404589032,1770317439046,-213.76036695,0.00014978,2]
[404589085,1770317439519,-151.0,0.0001446,2]
[404589087,1770317439529,-1472.23963305,0.00014978,2]
[404589089,1770317439538,-342.09036695,0.00014978,2]
[404589091,1770317439550,-81.90963305,0.00014978,2]
[404589093,1770317439560,-200.0,0.00014984,2]
[404589095,1770317439570,-200.0,0.00014984,2]
[404589097,1770317439585,-30.36839536,0.00014984,2]
[404589101,1770317439607,-472.57660428,0.00014984,2]
[404589121,1770317439802,-255.0,0.00014993,2]
[404589123,1770317439813,-250.0,0.00015,2]
[404589125,1770317439822,-203.84,0.00015005,2]
[404589127,1770317439834,-397.80788327,0.00015008,2]
[404589129,1770317439843,-415.56,0.00015067,2]
[404589131,1770317439853,-500.0,0.00015148,2]
[404589133,1770317439863,-1000.0,0.00015148,2]
[404589135,1770317439872,-420.0,0.00015187,2]
[404589137,1770317439882,-322.0,0.00015187,2]
[404589139,1770317439892,-479.32671247,0.00015246,2]
[404589141,1770317439904,-1200.67328753,0.00015246,2]
[404589143,1770317439913,-231.63927687,0.00015246,2]
[404589145,1770317439925,-80.16651493,0.00015246,2]
[404589147,1770317439934,-300.0,0.00015246,2]
[404589149,1770317439944,-117.64648907,0.00015246,2]
[404589152,1770317439960,-136.83325894,0.00015246,2]
[404589154,1770317439969,-195.0,0.00015246,2]
[404589156,1770317439978,-837.67997556,0.00015256,2]
[404589158,1770317439990,-905.83080346,0.00015256,2]
[404589160,1770317440003,-756.48922098,0.00015256,2]
[404589162,1770317440012,-367.18436696,0.00015256,2]
[404589164,1770317440022,-600.0,0.00015256,2]
[404589166,1770317440032,-300.0,0.00015256,2]
[404589167,1770317440041,-307.70460029,0.00015256,2]
[404589169,1770317440051,-250.0,0.00015257,2]
[404589171,1770317440060,-254.56,0.00015277,2]
[404589173,1770317440070,-415.56,0.00015341,2]
[404589175,1770317440082,-200.0,0.00015532,2]
[404589177,1770317440091,-200.0,0.00015532,2]
[404589179,1770317440101,-415.56,0.00015615,2]
[404589181,1770317440110,-500.0,0.00015641,2]
[404589183,1770317440120,-5094.42209041,0.00015811,2]
[404589185,1770317440129,-415.56,0.00015889,2]
[404589187,1770317440139,-254.56,0.00016041,2]
[404589189,1770317440148,-160.0,0.00016043,2]
[404589191,1770317440157,-152.01739561,0.00016057,2]
[404589193,1770317440167,-889.9,0.00016066,2]
[404589196,1770317440177,-203.84,0.00016159,2]
[404589197,1770317440185,-415.56,0.00016163,2]
[404589199,1770317440195,-5530.0,0.000162,3]
[404589201,1770317440205,-258.0,0.00016214,2]
[404589204,1770317440214,-150.0,0.00016216,2]
[404589205,1770317440223,-150.0,0.00016216,2]
[404589208,1770317440233,-150.0,0.00016216,2]
[404589210,1770317440242,-150.0,0.00016216,2]
[404589212,1770317440251,-500.0,0.00016216,2]
[404589213,1770317440260,-500.0,0.00016216,2]
[404589215,1770317440270,-150.0,0.00016216,2]
[404589218,1770317440280,-192.17460847,0.00016216,2]
[404589220,1770317440289,-150.0,0.00016216,2]
[404589222,1770317440298,-500.0,0.00016216,2]
[404589224,1770317440307,-150.0,0.00016216,2]
[404589226,1770317440316,-241.64782027,0.00016216,2]
[404589228,1770317440328,-500.0,0.00016216,2]
[404589230,1770317440337,-150.21207895,0.00016216,2]
[404589231,1770317440346,-150.0,0.00016216,2]
[404589233,1770317440355,-150.42668535,0.00016216,2]
[404589235,1770317440364,-150.0,0.00016216,2]
[404589237,1770317440373,-150.0,0.00016216,2]
[404589239,1770317440383,-150.0,0.00016216,2]
[404589241,1770317440392,-150.0,0.00016216,2]
[404589243,1770317440402,-150.0,0.00016216,2]
[404589244,1770317440411,-150.0,0.00016216,2]
[404589245,1770317440420,-292.33944889,0.00016216,2]
[404589246,1770317440430,-151.98337162,0.00016216,2]
[404589247,1770317440439,-150.0,0.00016216,2]
[404589248,1770317440448,-500.0,0.00016216,2]
[404589249,1770317440457,-150.0,0.00016216,2]
[404589250,1770317440467,-150.0,0.00016216,2]
[404589251,1770317440476,-194.03688759,0.00016216,2]
[404589252,1770317440486,-500.0,0.00016216,2]
[404589253,1770317440495,-500.0,0.00016216,2]
[404589254,1770317440504,-150.0,0.00016216,2]
[404589255,1770317440513,-188.91311241,0.00016216,2]
[404589257,1770317440522,-150.0,0.00016271,2]
[404589259,1770317440531,-150.0,0.00016271,2]
[404589261,1770317440540,-150.0,0.00016271,2]
[404589263,1770317440550,-150.0,0.00016271,2]
[404589265,1770317440559,-502.74294871,0.00016271,2]
[404589267,1770317440570,-501.95201777,0.00016271,2]
[404589269,1770317440582,-200.2113618,0.00016271,2]
[404589271,1770317440591,-150.0,0.00016271,2]
[404589273,1770317440601,-500.0,0.00016271,2]
[404589275,1770317440611,-150.0,0.00016271,2]
[404589277,1770317440622,-500.0,0.00016271,2]
[404589279,1770317440632,-150.0,0.00016271,2]
[404589280,1770317440641,-150.87713619,0.00016271,2]
[404589282,1770317440650,-150.0,0.00016271,2]
[404589284,1770317440661,-613.72923299,0.00016271,2]
[404589286,1770317440670,-150.21709555,0.00016271,2]
[404589288,1770317440680,-208.08041389,0.00016271,2]
[404589290,1770317440692,-500.0,0.00016271,2]
[404589292,1770317440705,-500.0,0.00016271,2]
[404589294,1770317440715,-150.0,0.00016326,2]
[404589297,1770317440725,-200.33165564,0.00016326,2]
[404589299,1770317440734,-150.0,0.00016326,2]
[404589301,1770317440744,-150.0,0.00016326,2]
[404589303,1770317440753,-150.0,0.00016326,2]
[404589305,1770317440762,-582.0,0.00016326,2]
[404589307,1770317440772,-150.0,0.00016326,2]
[404589309,1770317440781,-481.18508703,0.00016326,2]
[404589311,1770317440790,-200.71145025,0.00016326,2]
[404589313,1770317440799,-500.0,0.00016326,2]
[404589315,1770317440809,-500.0,0.00016326,2]
[404589317,1770317440818,-150.0,0.0001638,2]
[404589319,1770317440830,-415.56,0.00016437,2]
[404589321,1770317440840,-500.0,0.00016438,2]
[404589323,1770317440849,-500.0,0.00016438,2]
[404589325,1770317440857,-500.0,0.00016438,2]
[404589326,1770317440866,-500.0,0.00016438,2]
[404589328,1770317440876,-500.0,0.00016438,2]
[404589330,1770317440885,-500.0,0.00016438,2]
[404589332,1770317440895,-500.0,0.00016438,2]
[404589334,1770317440905,-500.0,0.00016438,2]
[404589336,1770317440914,-500.0,0.00016438,2]
[404589338,1770317440923,-500.0,0.00016438,2]
[404589340,1770317440932,-500.0,0.00016438,2]
[404589342,1770317440941,-500.0,0.00016438,2]
[404589344,1770317440950,-500.0,0.00016438,2]
[404589346,1770317440960,-500.0,0.00016438,2]
[404589348,1770317440969,-500.0,0.00016438,2]
[404589350,1770317440979,-500.0,0.00016438,2]
[404589352,1770317440989,-500.0,0.00016438,2]
[404589354,1770317440999,-500.0,0.00016438,2]
[404589356,1770317441008,-500.0,0.00016438,2]
[404589358,1770317441018,-500.0,0.00016438,2]
[404589360,1770317441027,-500.0,0.00016438,2]
[404589362,1770317441037,-500.0,0.00016438,2]
[404589364,1770317441046,-500.0,0.00016438,2]
[404589366,1770317441056,-500.0,0.00016438,2]
[404589368,1770317441065,-500.0,0.00016438,2]
[404589369,1770317441077,-500.0,0.00016438,2]
[404589371,1770317441087,-500.0,0.00016438,2]
[404589373,1770317441097,-500.0,0.00016438,2]
[404589375,1770317441106,-500.0,0.00016438,2]
[404589377,1770317441115,-500.0,0.00016438,2]
[404589379,1770317441130,-500.0,0.00016438,2]
[404589381,1770317441139,-500.0,0.00016438,2]
[404589383,1770317441149,-500.0,0.00016438,2]
[404589385,1770317441158,-500.0,0.00016438,2]
[404589387,1770317441168,-500.0,0.00016438,2]
[404589389,1770317441177,-500.0,0.00016438,2]
[404589391,1770317441187,-500.0,0.00016438,2]
[404589393,1770317441196,-500.0,0.00016438,2]
[404589395,1770317441205,-500.0,0.00016438,2]
[404589397,1770317441214,-500.0,0.00016438,2]
[404589399,1770317441224,-500.0,0.00016438,2]
[404589401,1770317441232,-500.0,0.00016438,2]
[404589403,1770317441241,-500.0,0.00016438,2]
[404589405,1770317441251,-500.0,0.00016438,2]
[404589407,1770317441260,-500.0,0.00016438,2]
[404589409,1770317441272,-500.0,0.00016438,2]
[404589411,1770317441283,-500.0,0.00016438,2]
[404589413,1770317441292,-500.0,0.00016438,2]
[404589415,1770317441302,-500.0,0.00016438,2]
[404589417,1770317441311,-500.0,0.00016438,2]
[404589419,1770317441320,-500.0,0.00016438,2]
[404589421,1770317441332,-393.32286489,0.00016438,2]
[404589423,1770317441341,-500.0,0.00016438,2]
[404589425,1770317441350,-500.0,0.00016438,2]
[404589427,1770317441359,-500.0,0.00016438,2]
[404589429,1770317441368,-500.0,0.00016438,2]
[404589431,1770317441377,-500.0,0.00016438,2]
[404589432,1770317441386,-500.0,0.00016438,2]
[404589434,1770317441396,-500.0,0.00016438,2]
[404589436,1770317441406,-500.0,0.00016438,2]
[404589438,1770317441415,-500.0,0.00016438,2]
[404589440,1770317441424,-500.0,0.00016438,2]
[404589442,1770317441433,-5530.0,0.000165,5]
[404589444,1770317441443,-587.0,0.0001664,2]
[404589446,1770317441452,-415.56,0.00016711,2]
[404589448,1770317441461,-721.12765535,0.00016741,2]
[404589450,1770317441470,-2000.0,0.00016741,2]
[404589452,1770317441479,-174.61919141,0.00016741,2]
[404589454,1770317441488,-322.6107,0.00016741,2]
[404589456,1770317441497,-209.40437684,0.00016741,2]
[404589458,1770317441506,-578.20924308,0.00016741,2]
[404589460,1770317441515,-144951.54,0.00016762,2]
[404589462,1770317441524,-2351.0,0.00016771,2]
[404589464,1770317441533,-217.15233878,0.00016796,2]
[404589466,1770317441542,-254.56,0.00016805,2]
[404589468,1770317441551,-5094.42209041,0.00016823,2]
[404589470,1770317441561,-225.18697532,0.00016851,2]
[404589472,1770317441570,-2100.0,0.000169,6]
[404589474,1770317441583,-233.51889341,0.00016906,2]
[404589476,1770317441592,-242.15909246,0.00016961,2]
[404589478,1770317441604,-415.56,0.00016985,2]
[404589480,1770317441614,-300.0,0.00017,2]
[404589481,1770317441625,-251.11897888,0.00017016,2]
[404589483,1770317441635,-260.4103811,0.00017071,2]
[404589485,1770317441646,-270.0455652,0.00017126,2]
[404589487,1770317441655,-280.03725112,0.00017181,2]
[404589489,1770317441664,-449.406372,0.0001723,7]
[404589491,1770317441674,-290.39862941,0.00017236,2]
[404589493,1770317441684,-415.56,0.00017259,2]
[404589495,1770317441695,-2000.0,0.00017289,2]
[404589497,1770317441704,-181.08010149,0.00017289,2]
[404589499,1770317441714,-301.1433787,0.00017291,2]
[404589502,1770317441724,-203.84,0.00017314,2]
[404589503,1770317441734,-895.0,0.00017378,2]
[404589505,1770317441744,-895.0,0.00017378,2]
[404589507,1770317441753,-895.0,0.00017474,2]
[404589509,1770317441763,-415.56,0.00017533,2]
[404589511,1770317441773,-895.0,0.00017542,2]
[404589513,1770317441782,-254.56,0.00017569,2]
[404589515,1770317441792,-895.0,0.00017693,2]
[404589517,1770317441802,-895.0,0.00017699,2]
[404589519,1770317441811,-895.0,0.00017728,2]
[404589521,1770317441821,-895.0,0.0001779,2]
[404589523,1770317441832,-415.56,0.00017807,2]
[404589525,1770317441842,-500.0,0.00017808,2]
[404589526,1770317441851,-5094.42209041,0.00017836,2]
[404589528,1770317441861,-2000.0,0.00017837,2]
[404589530,1770317441870,-187.78006525,0.00017837,2]
[404589532,1770317441880,-889.9,0.00017852,2]
[404589534,1770317441889,-500.0,0.00017863,2]
[404589536,1770317441899,-895.0,0.00017874,2]
[404589538,1770317441908,-500.0,0.00017918,2]
[404589540,1770317441917,-895.0,0.0001792,2]
[404589542,1770317441927,-500.0,0.00017972,2]
[404589544,1770317441936,-500.0,0.00017973,2]
[404589546,1770317441946,-500.0,0.00017973,2]
[404589548,1770317441955,-500.0,0.00017973,2]
[404589550,1770317441964,-500.0,0.00017973,2]
[404589552,1770317441973,-500.0,0.00017973,2]
[404589554,1770317441983,-387.32253792,0.00017973,2]
[404589556,1770317441992,-500.0,0.00017973,2]
[404589558,1770317442001,-511.65883454,0.00017973,2]
[404589560,1770317442010,-500.0,0.00017973,2]
[404589562,1770317442020,-500.0,0.00017973,2]
[404589564,1770317442029,-500.0,0.00017973,2]
[404589566,1770317442038,-500.0,0.00017973,2]
[404589568,1770317442047,-500.0,0.00017973,2]
[404589592,1770317442195,-507.08166095,0.00017973,2]
[404589595,1770317442205,-509.2963147,0.00017973,2]
[404589597,1770317442214,-500.0,0.00017973,2]
[404589599,1770317442224,-510.4331516,0.00017973,2]
[404589601,1770317442233,-500.0,0.00017973,2]
[404589603,1770317442243,-500.0,0.00017973,2]
[404589605,1770317442252,-500.0,0.00017973,2]
[404589607,1770317442262,-500.0,0.00017973,2]
[404589609,1770317442271,-506.98515424,0.00017973,2]
[404589611,1770317442280,-500.0,0.00017973,2]
[404589613,1770317442290,-506.90768866,0.00017973,2]
[404589615,1770317442299,-500.0,0.00017973,2]
[404589617,1770317442308,-500.0,0.00017973,2]
[404589619,1770317442318,-500.0,0.00017973,2]
[404589621,1770317442329,-500.0,0.00017973,2]
[404589623,1770317442338,-500.0,0.00017973,2]
[404589625,1770317442347,-500.0,0.00017973,2]
[404589627,1770317442357,-500.0,0.00017973,2]
[404589629,1770317442367,-150.0,0.00018,2]
[404589631,1770317442376,-3436.99024084,0.00018,2]
[404589633,1770317442386,-996.81646882,0.00018,3]
[404589635,1770317442395,-150.0,0.00018,2]
[404589637,1770317442405,-4658.616813,0.00018,2]
[404589639,1770317442414,-150.0,0.00018,2]
[404589641,1770317442423,-13302.49611968,0.00018,2]
[404589643,1770317442432,-200.0,0.00018,2]
[404589645,1770317442442,-506.0,0.0001801,2]
[404589646,1770317442451,-500.0,0.00018027,2]
[404589648,1770317442460,-152.01739561,0.00018064,2]
[404589650,1770317442471,-415.56,0.00018081,2]
[404589652,1770317442480,-500.0,0.00018082,2]
[404589654,1770317442490,-334.5472959,0.0001811,2]
[404589656,1770317442499,-500.0,0.00018137,2]
[404589658,1770317442509,-1411.0,0.00018175,2]
[404589660,1770317442519,-3482.0,0.00018175,2]
[404589662,1770317442528,-1335.0,0.00018175,2]
[404589664,1770317442538,-616.0,0.00018175,2]
[404589666,1770317442547,-1271.0,0.00018175,2]
[404589668,1770317442557,-412.0,0.00018175,2]
[404589670,1770317442567,-6581.0,0.00018175,2]
[404589672,1770317442579,-3266.636,0.00018175,2]
[404589674,1770317442591,-895.0,0.00018182,2]
[404589676,1770317442602,-1000.0,0.00018191,2]
[404589678,1770317442612,-500.0,0.00018192,2]
[404589679,1770317442625,-823.0,0.00018233,2]
[404589681,1770317442635,-500.0,0.00018246,2]
[404589684,1770317442646,-895.0,0.00018252,2]
[404589686,1770317442656,-895.0,0.00018296,2]
[404589688,1770317442666,-221.88177425,0.00018301,2]
[404589689,1770317442676,-200.0,0.00018319,2]
[404589691,1770317442687,-895.0,0.00018327,2]
[404589693,1770317442697,-254.56,0.00018333,2]
[404589696,1770317442707,-151.0,0.00018353,2]
[404589698,1770317442717,-415.56,0.00018355,2]
[404589700,1770317442727,-88544.31,0.00018356,2]
[404589702,1770317442736,-500.0,0.00018359,2]
[404589704,1770317442745,-500.0,0.00018359,2]
[404589705,1770317442754,-500.0,0.00018359,2]
[404589707,1770317442763,-500.0,0.00018359,2]
[404589709,1770317442773,-500.0,0.00018359,2]
[404589711,1770317442783,-557.26146772,0.00018359,2]
[404589713,1770317442792,-190.30889596,0.00018359,2]
[404589715,1770317442801,-500.0,0.00018359,2]
[404589717,1770317442810,-500.0,0.00018359,2]
[404589719,1770317442819,-500.0,0.00018359,2]
[404589721,1770317442832,-500.0,0.00018359,2]
[404589723,1770317442842,-500.0,0.00018359,2]
[404589725,1770317442852,-533.51390033,0.00018359,2]
[404589727,1770317442862,-215.83240278,0.00018359,2]
[404589729,1770317442871,-500.0,0.00018359,2]
[404589731,1770317442880,-500.0,0.00018359,2]
[404589733,1770317442890,-500.0,0.00018359,2]
[404589735,1770317442899,-300.0,0.00018359,2]
[404589737,1770317442908,-895.0,0.00018384,2]
[404589739,1770317442917,-2000.0,0.00018385,2]
[404589741,1770317442927,-194.72792766,0.00018385,2]
[404589743,1770317442936,-895.0,0.0001839,2]
[404589745,1770317442946,-895.0,0.00018423,2]
[404589746,1770317442955,-500.0,0.00018441,2]
[404589748,1770317442964,-951.0,0.00018448,2]
[404589750,1770317442974,-895.0,0.000185,2]
[404589752,1770317442983,-895.0,0.000185,2]
[404589754,1770317442992,-1000.0,0.00018521,2]
[404589756,1770317443002,-408.8446401,0.00018521,2]
[404589758,1770317443013,-1000.0,0.00018521,2]
[404589760,1770317443023,-1000.0,0.00018521,2]
[404589762,1770317443032,-526.27576932,0.00018521,2]
[404589764,1770317443042,-1000.0,0.00018521,2]
[404589766,1770317443051,-1000.0,0.00018521,2]
[404589768,1770317443061,-1000.0,0.00018521,2]
[404589770,1770317443070,-267.60703924,0.00018521,2]
[404589772,1770317443083,-626.50935226,0.00018521,2]
[404589774,1770317443092,-1000.0,0.00018521,2]
[404589776,1770317443102,-1000.0,0.00018521,2]
[404589778,1770317443111,-1000.0,0.00018521,2]
[404589780,1770317443120,-1000.0,0.00018521,2]
[404589782,1770317443130,-956.19349362,0.00018521,2]
[404589784,1770317443139,-490.41332566,0.00018521,2]
[404589786,1770317443148,-1000.0,0.00018521,2]
[404589788,1770317443158,-510.13526908,0.00018521,2]
[404589790,1770317443167,-1000.0,0.00018521,2]
[404589792,1770317443177,-1000.0,0.00018521,2]
[404589794,1770317443186,-1000.0,0.00018521,2]
[404589796,1770317443194,-1000.0,0.00018521,2]
[404589798,1770317443204,-1000.0,0.00018521,2]
[404589800,1770317443214,-1000.0,0.00018521,2]
[404589802,1770317443223,-895.0,0.00018528,2]
[404589803,1770317443233,-312.31034828,0.00018539,2]
[404589804,1770317443242,-415.56,0.00018628,2]
[404589805,1770317443251,-895.0,0.00018629,2]
[404589806,1770317443261,-895.0,0.00018634,2]
[404589807,1770317443271,-895.0,0.00018696,2]
[404589808,1770317443280,-895.0,0.00018747,2]
[404589809,1770317443290,-965.28313497,0.00018826,2]
[404589810,1770317443299,-341.90849198,0.00018833,2]
[404589811,1770317443308,-895.0,0.00018847,2]
[404589812,1770317443319,-5094.42209041,0.00018849,2]
[404589813,1770317443332,-828.22024441,0.00018849,2]
[404589814,1770317443341,-415.56,0.00018902,2]
[404589815,1770317443351,-506.0,0.00018909,2]
[404589817,1770317443361,-2000.0,0.00018933,2]
[404589819,1770317443370,-201.93286099,0.00018933,2]
[404589821,1770317443380,-150.0,0.00018988,2]
[404589823,1770317443390,-150.0,0.00018995,2]
[404589825,1770317443399,-350.0,0.00019,2]
[404589827,1770317443409,-1504.2260666,0.00019068,2]
[404589829,1770317443418,-1500.0,0.00019068,2]
[404589831,1770317443427,-1500.0,0.00019068,2]
[404589833,1770317443436,-1500.0,0.00019068,2]
[404589835,1770317443446,-908.89576694,0.00019068,2]
[404589837,1770317443455,-1500.0,0.00019068,2]
[404589839,1770317443464,-1500.0,0.00019068,2]
[404589841,1770317443473,-1500.0,0.00019068,2]
[404589843,1770317443483,-1500.0,0.00019068,2]
[404589845,1770317443492,-1500.0,0.00019068,2]
[404589847,1770317443501,-1500.0,0.00019068,2]
[404589849,1770317443511,-1500.0,0.00019068,2]
[404589851,1770317443522,-1500.0,0.00019068,2]
[404589853,1770317443531,-1500.0,0.00019068,2]
[404589855,1770317443541,-1500.0,0.00019068,2]
[404589857,1770317443550,-1500.0,0.00019068,2]
[404589859,1770317443559,-1500.0,0.00019068,2]
[404589861,1770317443569,-254.56,0.00019097,2]
[404589863,1770317443582,-415.56,0.00019176,2]
[404589864,1770317443593,-500.0,0.00019178,2]
[404589867,1770317443607,-3000.0,0.00019178,2]
[404589869,1770317443618,-20149.51,0.00019178,2]
[404589871,1770317443630,-1000.0,0.00019178,2]
[404589872,1770317443641,-160.89366842,0.00019178,2]
[404589875,1770317443652,-150.0,0.00019178,2]
[404589877,1770317443662,-362.1536654,0.00019183,2]
[404589878,1770317443672,-150.0,0.00019183,2]
[404589881,1770317443683,-500.0,0.00019233,2]
[404589882,1770317443693,-500.0,0.00019288,2]
[404589884,1770317443704,-8549.0,0.00019324,2]
[404589886,1770317443714,-181.7,0.00019333,2]
[404589888,1770317443724,-158.02201093,0.00019342,2]
[404589890,1770317443734,-600.0,0.000194,2]
[404589892,1770317443744,-600.0,0.000194,2]
[404589894,1770317443754,-415.57534042,0.0001945,2]
[404589896,1770317443764,-1000.0,0.00019452,2]
[404589898,1770317443774,-346.92554585,0.00019479,2]
[404589900,1770317443784,-4189.223,0.0001948,2]
[404589902,1770317443794,-389.056,0.0001948,2]
[404589904,1770317443803,-483.7514354,0.0001948,2]
[404589906,1770317443813,-599.60298507,0.0001948,2]
[404589908,1770317443822,-2000.0,0.00019481,2]
[404589910,1770317443841,-209.40437684,0.00019481,2]
[404589912,1770317443850,-2000.0,0.00019616,2]
[404589914,1770317443859,-1990.99013013,0.00019616,2]
[404589916,1770317443869,-2000.0,0.00019616,2]
[404589918,1770317443879,-2000.0,0.00019616,2]
[404589920,1770317443888,-477.38277676,0.00019616,2]
[404589921,1770317443897,-2149.51215349,0.00019616,2]
[404589924,1770317443907,-2000.0,0.00019616,2]
[404589925,1770317443917,-589.95947915,0.00019616,2]
[404589928,1770317443927,-2000.0,0.00019616,2]
[404589929,1770317443936,-2000.0,0.00019616,2]
[404589932,1770317443946,-692.37886657,0.00019616,2]
[404589934,1770317443957,-1010.00911744,0.00019616,2]
[404589936,1770317443966,-2000.0,0.00019616,2]
[404589938,1770317443976,-1222.56300425,0.00019616,2]
[404589940,1770317443985,-2000.0,0.00019616,2]
[404589941,1770317443994,-889.9,0.00019637,2]
[404589943,1770317444004,-2000.0,0.000197,2]
[404589945,1770317444013,-500.0,0.00019726,2]